[Event "Catalan Youth-ch 2020"]
[Site "Salou"]
[Date "2020.09.05"]
[Round "1.1"]
[White "Broadbent Brun, Jensen"]
[Black "Bernado Lopez, Roger"]
[Result "0-1"]
[ECO "E30"]
[WhiteElo "1550"]
[BlackElo "2155"]
[Annotator "ChessBase"]
[PlyCount "37"]
[EventDate "2020.09.07"]
[EventType "swiss"]
[EventCountry "ESP"]
[SourceTitle "playchess.com"]
[Source "ChessBase"]
[SourceQuality "1"]
[TimeControl "5400+30"]

1. d4 {[%emt 0:00:00]} Nf6 {[%emt 0:00:00]} 2. c4 {[%emt 0:00:00]} e6 {[%emt 0:00:03]} 3. Nc3 {[%emt 0:00:18]} Bb4 {[%emt 0:00:06]} 4. Bg5 {[%emt 0:01:58]} c5 {[%emt 0:00:36]} 5. a3 {[%emt 0:01:16]} Bxc3+ {[%emt 0:00:24]} 6. bxc3 {[%emt 0:00:09]} Qa5 {[%emt 0:01:25]} 7. Bd2 {[%emt 0:03:17]} O-O {[%emt 0:03:37]} 8. Nf3 {[%emt 0:01:57]} Nc6 {[%emt 0:02:48]} 9. d5 {[%emt 0:03:39]} Ne7 {[%emt 0:02:20]} 10. Qc2 {[%emt 0:07:01]} d6 {[%emt 0:05:52]} 11. e4 {[%emt 0:00:00]} e5 {[%emt 0:01:21]} 12. Bg5 {[%emt 0:02:05]} Ng6 {[%emt 0:01:47]} 13. Bd3 {[%emt 0:12:16]} Nxe4 {[%emt 0:20:23]} 14. Bxe4 {[%emt 0:18:13]} f5 {[%emt 0:00:07]} 15. O-O {[%emt 0:01:23]} fxe4 {[%emt 0:00:35]} 16. Qxe4 {[%emt 0:01:59]} Bf5 {[%emt 0:03:51]} 17. Qe3 {[%emt 0:06:31]} h6 {[%emt 0:12:16]} 18. Bh4 {[%emt 0:02:33]} e4 {[%emt 0:01:42]} 19. Bg3 {[%emt 0:04:19]} 0-1

[Event "Catalan Youth-ch 2020"]
[Site "Salou"]
[Date "2020.09.05"]
[Round "1.2"]
[White "Castillo Dalmau, Albert"]
[Black "Roa Ribera, Alvaro"]
[Result "1-0"]
[ECO "D10"]
[WhiteElo "2204"]
[BlackElo "1826"]
[Annotator "ChessBase"]
[PlyCount "105"]
[EventDate "2020.09.07"]
[EventType "swiss"]
[EventCountry "ESP"]
[SourceTitle "playchess.com"]
[Source "ChessBase"]
[SourceQuality "1"]
[TimeControl "5400+30"]

1. d4 {[%emt 0:01:51]} d5 {[%emt 0:00:25]} 2. c4 {[%emt 0:00:12]} c6 {[%emt 0:00:12]} 3. cxd5 {[%emt 0:00:00]} cxd5 {[%emt 0:00:12]} 4. Bf4 {[%emt 0:00:32]} Nf6 {[%emt 0:02:06]} 5. e3 {[%emt 0:13:06]} Qb6 {[%emt 0:00:35]} 6. Nc3 {[%emt 0:08:26]} Qxb2 {[%emt 0:01:13]} 7. Bb5+ {[%emt 0:00:00]} Nc6 {[%emt 0:00:30]} 8. Nge2 {[%emt 0:00:00]} e6 9. O-O {[%emt 0:02:01]} Qa3 {[%emt 0:26:39]} 10. Rb1 {[%emt 0:10:56]} Qa5 {[%emt 0:32:33]} 11. Qc2 {[%emt 0:28:00]} Qd8 {[%emt 0:05:44]} 12. Na4 {[%emt 0:05:01]} Be7 13. Nc5 {[%emt 0:13:13]} O-O {[%emt 0:01:52]} 14. Nxb7 {[%emt 0:00:09]} Bxb7 {[%emt 0:00:04]} 15. Bxc6 {[%emt 0:00:00]} Bxc6 {[%emt 0:00:07]} 16. Qxc6 {[%emt 0:03:01]} Qa5 {[%emt 0:06:25]} 17. Bc7 {[%emt 0:00:00]} Qxa2 18. Nf4 {[%emt 0:08:53]} Qc4 {[%emt 0:01:15]} 19. Qb7 {[%emt 0:00:00]} Rfc8 20. Rfc1 {[%emt 0:01:10]} Qa2 {[%emt 0:18:53]} 21. Nd3 Bf8 {[%emt 0:07:39]} 22. Be5 {[%emt 0:01:03]} Rxc1+ {[%emt 0:00:00]} 23. Rxc1 {[%emt 0:00:15]} Re8 24. Bxf6 {[%emt 0:01:01]} gxf6 {[%emt 0:00:48]} 25. Nf4 {[%emt 0:00:16]} Qa3 26. Qc6 {[%emt 0:01:53]} Rb8 27. g3 {[%emt 0:02:13]} Qd6 {[%emt 0:00:22]} 28. Qa4 {[%emt 0:00:18]} a6 {[%emt 0:00:49]} 29. Rc6 {[%emt 0:00:50]} Qa3 {[%emt 0:00:18]} 30. Qxa3 {[%emt 0:00:00]} Bxa3 {[%emt 0:00:00]} 31. Rxa6 {[%emt 0:00:00]} Be7 32. g4 {[%emt 0:00:45]} Kg7 {[%emt 0:00:20]} 33. Ra7 {[%emt 0:00:04]} Kf8 {[%emt 0:00:12]} 34. Kg2 {[%emt 0:00:00]} Rc8 35. Nh5 {[%emt 0:01:29]} Bd8 {[%emt 0:00:24]} 36. Rb7 {[%emt 0:00:00]} Be7 {[%emt 0:00:00]} 37. h3 {[%emt 0:00:18]} Bd8 {[%emt 0:00:38]} 38. f4 {[%emt 0:00:56]} Be7 {[%emt 0:00:00]} 39. Kf3 Bd8 {[%emt 0:02:14]} 40. f5 {[%emt 0:00:11]} e5 41. Rd7 {[%emt 0:00:40]} exd4 42. exd4 {[%emt 0:01:08]} Rc5 {[%emt 0:00:00]} 43. Kg2 {[%emt 0:00:12]} Rc3 {[%emt 0:00:00]} 44. Rxd5 {[%emt 0:01:06]} Ke7 45. Nxf6 {[%emt 0:00:46]} Bc7 46. Ne4 {[%emt 0:00:54]} Re3 {[%emt 0:00:29]} 47. Rc5 {[%emt 0:00:00]} Bf4 48. Nc3 {[%emt 0:00:00]} Rg3+ 49. Kf2 {[%emt 0:00:22]} Bd6 {[%emt 0:01:15]} 50. Nd5+ {[%emt 0:00:41]} Kd7 {[%emt 0:00:09]} 51. Nb6+ {[%emt 0:00:50]} Ke8 52. Rc6 {[%emt 0:01:52]} Bf4 {[%emt 0:00:19]} 53. Rc8+ {[%emt 0:00:35]} 1-0

[Event "Catalan Youth-ch 2020"]
[Site "Salou"]
[Date "2020.09.05"]
[Round "1.2"]
[White "Ano Pla, Gerard"]
[Black "Sierra Magrazo, Lidia"]
[Result "1-0"]
[ECO "D90"]
[WhiteElo "1993"]
[BlackElo "1491"]
[Annotator "ChessBase"]
[PlyCount "119"]
[EventDate "2020.09.07"]
[EventType "swiss"]
[EventCountry "ESP"]
[SourceTitle "playchess.com"]
[Source "ChessBase"]
[SourceQuality "1"]
[TimeControl "5400+30"]

1. d4 {[%emt 0:00:00]} Nf6 {[%emt 0:00:00]} 2. c4 {[%emt 0:00:00]} g6 {[%emt 0:00:00]} 3. Nc3 {[%emt 0:00:29]} d5 {[%emt 0:00:18]} 4. cxd5 {[%emt 0:00:00]} Nxd5 {[%emt 0:00:31]} 5. Bd2 {[%emt 0:00:00]} Bg7 {[%emt 0:00:36]} 6. e4 {[%emt 0:00:11]} Nxc3 {[%emt 0:00:43]} 7. Bxc3 {[%emt 0:00:00]} O-O {[%emt 0:00:56]} 8. Nf3 {[%emt 0:02:05]} c5 {[%emt 0:00:58]} 9. d5 {[%emt 0:00:02]} Bxc3+ {[%emt 0:01:48]} 10. bxc3 {[%emt 0:00:07]} e6 {[%emt 0:02:49]} 11. c4 {[%emt 0:02:01]} exd5 {[%emt 0:10:27]} 12. exd5 {[%emt 0:06:44]} Re8+ {[%emt 0:00:00]} 13. Be2 {[%emt 0:00:08]} Qe7 {[%emt 0:00:00]} 14. Kf1 {[%emt 0:07:07]} Nd7 {[%emt 0:03:43]} 15. Qd2 {[%emt 0:12:18]} Nf6 {[%emt 0:06:27]} 16. Re1 {[%emt 0:01:47]} Bd7 {[%emt 0:05:48]} 17. h4 {[%emt 0:00:00]} Rad8 {[%emt 0:08:19]} 18. g3 {[%emt 0:02:34]} a6 {[%emt 0:06:30]} 19. Kg2 {[%emt 0:03:05]} h5 {[%emt 0:05:05]} 20. Bd3 {[%emt 0:01:22]} Qf8 {[%emt 0:02:44]} 21. Qg5 {[%emt 0:03:33]} Nh7 {[%emt 0:02:26]} 22. Qf4 {[%emt 0:04:47]} Kg7 {[%emt 0:03:08]} 23. Ne5 {[%emt 0:09:58]} Nf6 {[%emt 0:07:09]} 24. Qg5 {[%emt 0:00:00]} Nh7 {[%emt 0:02:08]} 25. Qd2 {[%emt 0:05:17]} Qd6 {[%emt 0:09:07]} 26. Qb2 {[%emt 0:02:22]} Kg8 {[%emt 0:01:57]} 27. Nxd7 {[%emt 0:00:00]} Qxd7 {[%emt 0:00:13]} 28. Qb6 {[%emt 0:01:32]} Kg7 {[%emt 0:00:27]} 29. Qxc5 {[%emt 0:00:00]} Nf6 {[%emt 0:06:17]} 30. Qd4 {[%emt 0:04:42]} Qd6 {[%emt 0:01:56]} 31. a4 {[%emt 0:04:53]} b5 {[%emt 0:01:40]} 32. axb5 {[%emt 0:00:00]} axb5 {[%emt 0:00:48]} 33. Rxe8 {[%emt 0:00:00]} Rxe8 {[%emt 0:02:43]} 34. cxb5 {[%emt 0:00:00]} Qxd5+ {[%emt 0:00:00]} 35. Qxd5 {[%emt 0:00:00]} Nxd5 {[%emt 0:00:00]} 36. Rc1 {[%emt 0:01:06]} Rb8 {[%emt 0:02:14]} 37. Rc5 {[%emt 0:02:11]} Nb6 {[%emt 0:00:41]} 38. Rc6 {[%emt 0:00:00]} Rb7 {[%emt 0:03:53]} 39. Be4 {[%emt 0:00:00]} Rb8 {[%emt 0:00:00]} 40. Rc7 {[%emt 0:01:22]} Nc8 {[%emt 0:04:56]} 41. Rb7 {[%emt 0:00:00]} Rxb7 {[%emt 0:00:00]} 42. Bxb7 {[%emt 0:00:00]} Nb6 {[%emt 0:00:44]} 43. Kf3 {[%emt 0:00:00]} Kf6 {[%emt 0:00:00]} 44. Ke4 {[%emt 0:00:44]} Ke6 {[%emt 0:00:00]} 45. f4 {[%emt 0:01:20]} f5+ {[%emt 0:00:59]} 46. Kd4 {[%emt 0:00:00]} Kd6 {[%emt 0:00:08]} 47. Bc6 {[%emt 0:00:00]} Ke6 {[%emt 0:00:15]} 48. Be8 {[%emt 0:00:00]} Kf6 {[%emt 0:00:06]} 49. Kc5 {[%emt 0:00:00]} Na4+ {[%emt 0:00:12]} 50. Kc6 {[%emt 0:00:00]} Kg7 {[%emt 0:00:14]} 51. b6 {[%emt 0:00:00]} Nxb6 {[%emt 0:00:03]} 52. Kxb6 {[%emt 0:00:28]} Kh6 {[%emt 0:00:37]} 53. Kc6 {[%emt 0:00:00]} Kg7 {[%emt 0:00:04]} 54. Kd6 {[%emt 0:00:00]} Kf6 {[%emt 0:00:07]} 55. Bxg6 {[%emt 0:00:00]} Kxg6 {[%emt 0:00:03]} 56. Ke6 {[%emt 0:00:00]} Kg7 {[%emt 0:00:28]} 57. Kxf5 {[%emt 0:00:00]} Kh6 {[%emt 0:00:05]} 58. Ke6 {[%emt 0:00:00]} Kg6 {[%emt 0:00:06]} 59. f5+ {[%emt 0:00:00]} Kg7 {[%emt 0:00:06]} 60. Ke7 {[%emt 0:00:18]} 1-0

[Event "Catalan Youth-ch 2020"]
[Site "Salou"]
[Date "2020.09.05"]
[Round "1.3"]
[White "Cros Garcia, Marc"]
[Black "Sole Pijuan, Ferran"]
[Result "0-1"]
[ECO "C50"]
[WhiteElo "1777"]
[BlackElo "2127"]
[Annotator "ChessBase"]
[PlyCount "80"]
[EventDate "2020.09.07"]
[EventType "swiss"]
[EventCountry "ESP"]
[SourceTitle "playchess.com"]
[Source "ChessBase"]
[SourceQuality "1"]
[TimeControl "5400+30"]

1. e4 {[%emt 0:00:16]} e5 {[%emt 0:00:07]} 2. Nf3 {[%emt 0:00:36]} Nc6 {[%emt 0:00:12]} 3. Bc4 {[%emt 0:00:40]} Nf6 {[%emt 0:00:23]} 4. d3 {[%emt 0:00:27]} Bc5 {[%emt 0:00:08]} 5. O-O {[%emt 0:00:39]} d6 {[%emt 0:00:52]} 6. a4 {[%emt 0:00:13]} a6 {[%emt 0:00:37]} 7. c3 {[%emt 0:01:00]} Ba7 {[%emt 0:00:51]} 8. a5 {[%emt 0:00:19]} h6 {[%emt 0:13:17]} 9. Be3 {[%emt 0:10:23]} O-O {[%emt 0:01:48]} 10. h3 {[%emt 0:05:35]} d5 {[%emt 0:00:46]} 11. exd5 {[%emt 0:00:00]} Nxd5 {[%emt 0:01:05]} 12. Bxa7 {[%emt 0:00:00]} Rxa7 {[%emt 0:00:40]} 13. Re1 {[%emt 0:03:05]} Nf4 {[%emt 0:05:09]} 14. Kh2 {[%emt 0:06:44]} Qf6 {[%emt 0:18:35]} 15. Ng1 {[%emt 0:04:49]} Rd8 {[%emt 0:21:49]} 16. Qf3 {[%emt 0:33:56]} Bf5 {[%emt 0:05:37]} 17. d4 {[%emt 0:00:38]} Bxb1 {[%emt 0:05:22]} 18. Raxb1 {[%emt 0:00:39]} exd4 {[%emt 0:01:42]} 19. g3 {[%emt 0:00:58]} Ng6 {[%emt 0:01:31]} 20. Qxf6 {[%emt 0:00:13]} gxf6 {[%emt 0:08:13]} 21. cxd4 {[%emt 0:00:50]} Rxd4 {[%emt 0:00:07]} 22. Re8+ {[%emt 0:14:12]} Kg7 {[%emt 0:01:45]} 23. Ba2 {[%emt 0:00:46]} Nxa5 {[%emt 0:01:52]} 24. Nf3 {[%emt 0:02:55]} Ra4 {[%emt 0:03:36]} 25. Bd5 {[%emt 0:02:56]} c6 {[%emt 0:00:00]} 26. Be4 {[%emt 0:00:38]} Ne5 {[%emt 0:02:19]} 27. b4 {[%emt 0:02:27]} Nxf3+ {[%emt 0:00:16]} 28. Bxf3 {[%emt 0:00:06]} Nc4 {[%emt 0:01:24]} 29. Bh5 {[%emt 0:01:52]} b5 30. Rd1 {[%emt 0:06:41]} Rxb4 {[%emt 0:00:17]} 31. Rdd8 {[%emt 0:00:00]} f5 {[%emt 0:01:00]} 32. f4 {[%emt 0:00:29]} Rb2+ {[%emt 0:00:50]} 33. Kh1 {[%emt 0:05:37]} Kf6 {[%emt 0:01:01]} 34. Rh8 {[%emt 0:00:30]} Re7 {[%emt 0:01:04]} 35. Rd1 {[%emt 0:00:00]} Kg7 {[%emt 0:00:00]} 36. Rc8 {[%emt 0:01:00]} a5 {[%emt 0:00:33]} 37. Rxc6 {[%emt 0:00:00]} a4 {[%emt 0:00:51]} 38. g4 {[%emt 0:01:42]} Ree2 {[%emt 0:00:00]} 39. gxf5 {[%emt 0:00:00]} Rh2+ {[%emt 0:00:00]} 40. Kg1 {[%emt 0:00:10]} Rbg2+ {[%emt 0:01:29]} 0-1

[Event "Catalan Youth-ch 2020"]
[Site "Salou"]
[Date "2020.09.05"]
[Round "1.3"]
[White "Chiva Perez, Ferran"]
[Black "Garcia Caro, Juan Alberto"]
[Result "0-1"]
[ECO "D06"]
[WhiteElo "1484"]
[BlackElo "1933"]
[Annotator "ChessBase"]
[PlyCount "37"]
[EventDate "2020.09.07"]
[EventType "swiss"]
[EventCountry "ESP"]
[SourceTitle "playchess.com"]
[Source "ChessBase"]
[SourceQuality "1"]
[TimeControl "5400+30"]

1. c4 {[%emt 0:00:00]} e6 {[%emt 0:00:00]} 2. Nc3 {[%emt 0:00:00]} d5 {[%emt 0:00:00]} 3. cxd5 {[%emt 0:00:30]} exd5 {[%emt 0:00:00]} 4. d4 {[%emt 0:00:28]} Bf5 {[%emt 0:00:54]} 5. Qb3 {[%emt 0:07:17]} Nc6 {[%emt 0:02:33]} 6. Nxd5 {[%emt 0:14:23]} Be4 {[%emt 0:19:22]} 7. Ne3 {[%emt 0:14:05]} Bb4+ {[%emt 0:04:43]} 8. Bd2 {[%emt 0:00:08]} Bxd2+ {[%emt 0:00:14]} 9. Kxd2 {[%emt 0:00:05]} Nxd4 {[%emt 0:01:14]} 10. Qa4+ {[%emt 0:06:03]} b5 {[%emt 0:01:49]} 11. Qa6 {[%emt 0:02:28]} Nf3+ {[%emt 0:03:00]} 12. Kc3 {[%emt 0:01:15]} Qd2+ {[%emt 0:00:55]} 13. Kb3 {[%emt 0:00:03]} Nd4+ {[%emt 0:00:12]} 14. Ka3 {[%emt 0:00:15]} b4+ {[%emt 0:00:11]} 15. Ka4 {[%emt 0:00:31]} Bc6+ {[%emt 0:00:12]} 16. Qxc6+ {[%emt 0:01:00]} Nxc6 {[%emt 0:00:08]} 17. Rd1 {[%emt 0:00:06]} Qxb2 {[%emt 0:00:15]} 18. Kb5 {[%emt 0:00:57]} Nge7 {[%emt 0:00:16]} 19. Nc4 {[%emt 0:00:17]} 0-1

[Event "Catalan Youth-ch 2020"]
[Site "Salou"]
[Date "2020.09.05"]
[Round "1.4"]
[White "Saguillo Gonzalez, Oriol"]
[Black "Norberto Gonzalez, Oriol"]
[Result "1-0"]
[ECO "B51"]
[WhiteElo "2124"]
[BlackElo "1768"]
[Annotator "ChessBase"]
[PlyCount "67"]
[EventDate "2020.09.07"]
[EventType "swiss"]
[EventCountry "ESP"]
[SourceTitle "playchess.com"]
[Source "ChessBase"]
[SourceQuality "1"]
[TimeControl "5400+30"]

1. e4 {[%emt 0:00:00]} c5 {[%emt 0:00:00]} 2. Nf3 {[%emt 0:00:00]} Nc6 {[%emt 0:00:00]} 3. Bb5 {[%emt 0:00:56]} d6 {[%emt 0:00:40]} 4. O-O {[%emt 0:00:41]} Nf6 {[%emt 0:00:28]} 5. Re1 {[%emt 0:01:00]} Bd7 {[%emt 0:02:47]} 6. Bf1 {[%emt 0:02:00]} g6 {[%emt 0:00:05]} 7. c3 {[%emt 0:02:02]} Bg7 {[%emt 0:00:14]} 8. d4 {[%emt 0:00:57]} cxd4 {[%emt 0:02:10]} 9. cxd4 {[%emt 0:02:16]} O-O {[%emt 0:01:03]} 10. Nc3 {[%emt 0:01:47]} e5 {[%emt 0:09:03]} 11. d5 {[%emt 0:00:31]} Ne7 {[%emt 0:00:00]} 12. b3 {[%emt 0:05:45]} a6 13. a4 {[%emt 0:09:59]} Nh5 {[%emt 0:08:49]} 14. Nd2 {[%emt 0:08:36]} f5 {[%emt 0:00:54]} 15. Ba3 {[%emt 0:02:31]} Be8 {[%emt 0:02:34]} 16. Nc4 {[%emt 0:02:23]} Nc8 {[%emt 0:02:40]} 17. a5 {[%emt 0:09:33]} f4 {[%emt 0:19:08]} 18. f3 {[%emt 0:04:45]} Rf7 {[%emt 0:12:27]} 19. Qd2 {[%emt 0:09:06]} Bf8 {[%emt 0:02:35]} 20. Qf2 {[%emt 0:09:38]} Rg7 {[%emt 0:04:18]} 21. g4 {[%emt 0:00:36]} fxg3 {[%emt 0:00:00]} 22. hxg3 {[%emt 0:03:39]} Qg5 {[%emt 0:02:07]} 23. Kh2 {[%emt 0:04:32]} Rf7 {[%emt 0:03:10]} 24. Bh3 {[%emt 0:03:43]} Qh6 {[%emt 0:01:19]} 25. Kg2 {[%emt 0:06:31]} Bd7 {[%emt 0:00:54]} 26. Be6 {[%emt 0:00:34]} Bxe6 {[%emt 0:08:26]} 27. dxe6 {[%emt 0:05:36]} Rg7 {[%emt 0:12:54]} 28. Rad1 {[%emt 0:00:40]} Qg5 {[%emt 0:00:32]} 29. Nd5 {[%emt 0:00:00]} Nf4+ 30. Nxf4 {[%emt 0:01:00]} exf4 {[%emt 0:02:16]} 31. Rd5 {[%emt 0:02:20]} Qf6 {[%emt 0:01:32]} 32. Bb2 {[%emt 0:00:45]} Qxe6 {[%emt 0:00:00]} 33. Bxg7 {[%emt 0:00:11]} Bxg7 {[%emt 0:00:00]} 34. gxf4 {[%emt 0:01:18]} 1-0

[Event "Catalan Youth-ch 2020"]
[Site "Salou"]
[Date "2020.09.05"]
[Round "1.4"]
[White "Salinas Tomas, Daniel"]
[Black "Tabuenca Munuera, Gerard"]
[Result "1-0"]
[ECO "C48"]
[WhiteElo "1979"]
[BlackElo "1221"]
[Annotator "ChessBase"]
[PlyCount "77"]
[EventDate "2020.09.07"]
[EventType "swiss"]
[EventCountry "ESP"]
[SourceTitle "playchess.com"]
[Source "ChessBase"]
[SourceQuality "1"]
[TimeControl "5400+30"]

1. e4 {[%emt 0:00:00]} e5 {[%emt 0:00:00]} 2. Nf3 {[%emt 0:00:00]} Nc6 {[%emt 0:00:00]} 3. Nc3 {[%emt 0:00:16]} Nf6 {[%emt 0:00:00]} 4. Bb5 {[%emt 0:00:29]} a6 {[%emt 0:00:40]} 5. Bxc6 {[%emt 0:00:29]} dxc6 {[%emt 0:00:21]} 6. Nxe5 {[%emt 0:00:47]} Qd4 {[%emt 0:00:57]} 7. Nf3 {[%emt 0:00:16]} Qd8 {[%emt 0:01:17]} 8. h3 {[%emt 0:01:20]} Bb4 {[%emt 0:00:23]} 9. O-O {[%emt 0:00:47]} O-O {[%emt 0:00:16]} 10. d3 {[%emt 0:00:41]} h6 {[%emt 0:01:15]} 11. Ne2 {[%emt 0:02:47]} c5 {[%emt 0:02:24]} 12. Ng3 {[%emt 0:01:26]} Be6 {[%emt 0:02:00]} 13. Be3 {[%emt 0:01:55]} Re8 {[%emt 0:01:12]} 14. a3 {[%emt 0:00:56]} Ba5 {[%emt 0:00:38]} 15. Bxc5 {[%emt 0:00:32]} b6 {[%emt 0:01:08]} 16. Be3 {[%emt 0:00:25]} c5 {[%emt 0:00:45]} 17. c3 {[%emt 0:01:56]} c4 {[%emt 0:06:42]} 18. Nd4 {[%emt 0:05:19]} Rc8 {[%emt 0:03:45]} 19. Nxe6 {[%emt 0:01:30]} Rxe6 {[%emt 0:00:25]} 20. dxc4 {[%emt 0:01:03]} b5 {[%emt 0:03:10]} 21. Qxd8+ {[%emt 0:01:19]} Rxd8 {[%emt 0:00:14]} 22. cxb5 {[%emt 0:00:07]} axb5 {[%emt 0:00:17]} 23. Rfd1 {[%emt 0:00:13]} Nxe4 {[%emt 0:02:20]} 24. Nxe4 {[%emt 0:00:13]} Rxe4 {[%emt 0:00:15]} 25. Rxd8+ {[%emt 0:00:10]} Bxd8 {[%emt 0:00:18]} 26. Rd1 {[%emt 0:00:12]} Bf6 {[%emt 0:03:02]} 27. Rd5 {[%emt 0:00:25]} g5 {[%emt 0:05:20]} 28. Rxb5 {[%emt 0:00:07]} Be5 {[%emt 0:01:19]} 29. Kf1 {[%emt 0:01:49]} f5 {[%emt 0:01:47]} 30. Rb4 {[%emt 0:00:12]} Rxb4 {[%emt 0:02:08]} 31. axb4 {[%emt 0:00:02]} Kf7 {[%emt 0:00:41]} 32. f4 {[%emt 0:00:52]} gxf4 {[%emt 0:01:03]} 33. Bd4 {[%emt 0:00:20]} Bxd4 {[%emt 0:01:02]} 34. cxd4 {[%emt 0:00:02]} Ke6 {[%emt 0:00:24]} 35. Ke2 {[%emt 0:00:09]} f3+ {[%emt 0:01:03]} 36. Kxf3 {[%emt 0:00:09]} Kd5 {[%emt 0:00:33]} 37. b5 {[%emt 0:00:52]} Ke6 {[%emt 0:00:51]} 38. b6 {[%emt 0:00:00]} Kd7 {[%emt 0:00:50]} 39. d5 {[%emt 0:00:00]} 1-0

[Event "Catalan Youth-ch 2020"]
[Site "Salou"]
[Date "2020.09.05"]
[Round "1.5"]
[White "Martin Barcelo, Carles"]
[Black "Mangues Rubia, Alex"]
[Result "1-0"]
[ECO "B31"]
[WhiteElo "2202"]
[BlackElo "1738"]
[Annotator "ChessBase"]
[PlyCount "107"]
[EventDate "2020.09.07"]
[EventType "swiss"]
[EventCountry "ESP"]
[SourceTitle "playchess.com"]
[Source "ChessBase"]
[SourceQuality "1"]
[TimeControl "5400+30"]

1. e4 {[%emt 0:00:00]} c5 {[%emt 0:00:00]} 2. Nf3 {[%emt 0:00:00]} Nc6 {[%emt 0:00:00]} 3. Bb5 {[%emt 0:00:00]} g6 {[%emt 0:00:00]} 4. Bxc6 {[%emt 0:00:06]} dxc6 {[%emt 0:00:00]} 5. d3 {[%emt 0:00:08]} Bg7 {[%emt 0:00:00]} 6. h3 {[%emt 0:00:04]} Qc7 {[%emt 0:00:05]} 7. O-O {[%emt 0:02:22]} e5 {[%emt 0:00:17]} 8. a4 {[%emt 0:02:08]} a5 {[%emt 0:01:56]} 9. Be3 {[%emt 0:01:06]} b6 {[%emt 0:00:52]} 10. Nbd2 {[%emt 0:03:08]} Ne7 {[%emt 0:01:28]} 11. Nh2 {[%emt 0:03:32]} f5 {[%emt 0:08:15]} 12. exf5 {[%emt 0:02:16]} Nxf5 {[%emt 0:05:04]} 13. Ne4 {[%emt 0:02:13]} Nxe3 {[%emt 0:06:36]} 14. fxe3 {[%emt 0:00:06]} Bf5 {[%emt 0:01:45]} 15. Ng5 {[%emt 0:19:12]} Qe7 {[%emt 0:12:20]} 16. Ne4 {[%emt 0:08:57]} O-O-O {[%emt 0:05:29]} 17. Qe2 {[%emt 0:02:05]} c4 {[%emt 0:08:40]} 18. Nf3 {[%emt 0:00:05]} cxd3 {[%emt 0:07:54]} 19. cxd3 {[%emt 0:00:05]} Qb4 {[%emt 0:04:54]} 20. Rfc1 {[%emt 0:03:47]} Kb7 {[%emt 0:03:35]} 21. Rc4 {[%emt 0:03:13]} Qe7 {[%emt 0:01:54]} 22. Rac1 {[%emt 0:02:34]} Rc8 {[%emt 0:05:25]} 23. Qc2 {[%emt 0:00:29]} c5 {[%emt 0:02:50]} 24. Nfd2 {[%emt 0:09:02]} Bh6 {[%emt 0:02:48]} 25. Re1 {[%emt 0:00:27]} Rhd8 {[%emt 0:01:58]} 26. Rc3 {[%emt 0:00:59]} Qh4 {[%emt 0:02:41]} 27. Nf3 {[%emt 0:00:29]} Qe7 {[%emt 0:01:03]} 28. Ned2 {[%emt 0:04:06]} Bg7 {[%emt 0:02:54]} 29. e4 {[%emt 0:00:19]} Be6 {[%emt 0:01:44]} 30. Nc4 {[%emt 0:00:51]} Bg8 {[%emt 0:02:47]} 31. Rb3 {[%emt 0:03:33]} Bxc4 {[%emt 0:02:43]} 32. Qxc4 {[%emt 0:02:51]} Ka7 {[%emt 0:01:28]} 33. Rf1 {[%emt 0:01:26]} Rf8 {[%emt 0:01:16]} 34. Qb5 {[%emt 0:00:43]} Qc7 {[%emt 0:00:51]} 35. Re1 {[%emt 0:01:59]} Rfe8 {[%emt 0:03:05]} 36. Nd2 {[%emt 0:01:10]} Rb8 {[%emt 0:01:16]} 37. Nc4 {[%emt 0:00:19]} Rec8 {[%emt 0:01:17]} 38. Na3 {[%emt 0:02:50]} Qe7 {[%emt 0:00:59]} 39. Qc4 {[%emt 0:00:28]} Rb7 {[%emt 0:00:37]} 40. Nb5+ {[%emt 0:01:07]} Kb8 {[%emt 0:00:23]} 41. Nc3 {[%emt 0:00:09]} Qd8 {[%emt 0:00:48]} 42. Nd5 {[%emt 0:00:17]} Rc6 {[%emt 0:00:26]} 43. Rf1 {[%emt 0:00:08]} Bh8 {[%emt 0:00:35]} 44. Rf3 {[%emt 0:01:09]} Bg7 {[%emt 0:00:23]} 45. Rc3 {[%emt 0:00:52]} Ka7 {[%emt 0:00:35]} 46. Rc1 {[%emt 0:00:17]} Rd6 {[%emt 0:00:25]} 47. Rcf1 {[%emt 0:00:25]} Rbd7 {[%emt 0:00:32]} 48. Nc3 {[%emt 0:02:09]} Rxd3 {[%emt 0:00:34]} 49. Rxd3 {[%emt 0:00:11]} Rxd3 {[%emt 0:00:09]} 50. Rf7+ {[%emt 0:00:00]} Rd7 {[%emt 0:00:18]} 51. Qd5 {[%emt 0:00:25]} Rxf7 {[%emt 0:01:04]} 52. Qxd8 {[%emt 0:00:09]} Rf8 {[%emt 0:00:31]} 53. Nb5+ {[%emt 0:00:17]} Ka6 {[%emt 0:00:14]} 54. Qd7 {[%emt 0:00:05]} 1-0

[Event "Catalan Youth-ch 2020"]
[Site "Salou"]
[Date "2020.09.05"]
[Round "1.5"]
[White "Bosch Garcia, Ivan"]
[Black "Domene Mulyukov, Alexander"]
[Result "0-1"]
[ECO "B44"]
[WhiteElo "1210"]
[BlackElo "1931"]
[Annotator "ChessBase"]
[PlyCount "56"]
[EventDate "2020.09.07"]
[EventType "swiss"]
[EventCountry "ESP"]
[SourceTitle "playchess.com"]
[Source "ChessBase"]
[SourceQuality "1"]
[TimeControl "5400+30"]

1. e4 {[%emt 0:00:00]} c5 {[%emt 0:00:00]} 2. Nf3 {[%emt 0:00:00]} e6 {[%emt 0:00:07]} 3. d4 {[%emt 0:00:47]} cxd4 {[%emt 0:00:29]} 4. Nxd4 {[%emt 0:00:51]} Nf6 {[%emt 0:00:07]} 5. Bd3 {[%emt 0:01:21]} Nc6 {[%emt 0:00:12]} 6. Be3 {[%emt 0:00:19]} d5 {[%emt 0:00:41]} 7. Bb5 {[%emt 0:00:25]} Bd7 {[%emt 0:00:55]} 8. exd5 {[%emt 0:00:18]} Nxd5 {[%emt 0:00:26]} 9. O-O {[%emt 0:01:14]} Be7 {[%emt 0:03:07]} 10. c3 {[%emt 0:00:59]} O-O {[%emt 0:00:34]} 11. Qd3 {[%emt 0:01:06]} Nxe3 {[%emt 0:04:04]} 12. fxe3 {[%emt 0:00:50]} a6 {[%emt 0:03:26]} 13. Ba4 {[%emt 0:02:13]} Nxd4 {[%emt 0:07:15]} 14. Bxd7 {[%emt 0:00:00]} Nc6 {[%emt 0:05:53]} 15. Rd1 {[%emt 0:06:55]} Ne5 {[%emt 0:00:30]} 16. Qd2 {[%emt 0:03:14]} Bc5 {[%emt 0:02:10]} 17. Kh1 {[%emt 0:01:45]} Ng4 {[%emt 0:01:24]} 18. Re1 {[%emt 0:02:44]} Bxe3 {[%emt 0:03:37]} 19. Qe2 {[%emt 0:01:07]} Nf2+ {[%emt 0:00:53]} 20. Kg1 {[%emt 0:00:09]} Nd3+ {[%emt 0:00:12]} 21. Qxe3 {[%emt 0:00:20]} Nxe1 {[%emt 0:00:06]} 22. Qxe1 {[%emt 0:00:07]} Qxd7 {[%emt 0:00:09]} 23. Nd2 {[%emt 0:00:27]} Rfd8 {[%emt 0:00:56]} 24. Ne4 {[%emt 0:00:15]} Qb5 {[%emt 0:01:15]} 25. Qg3 {[%emt 0:01:04]} Qd3 {[%emt 0:03:11]} 26. Qf4 {[%emt 0:01:21]} Rd5 {[%emt 0:03:20]} 27. g4 {[%emt 0:00:54]} f5 {[%emt 0:01:28]} 28. Rf1 {[%emt 0:00:26]} Qxe4 {[%emt 0:00:27]} 0-1